[Event "7th Paul Keres Memorial Festival 2026 Classic A"]
[Site "ESTONIA Resort Hotel & Spa conference center, EE"]
[Date "2026.07.31"]
[Round "7"]
[White "Povilaitis, Tomas"]
[Black "Keinanen, Anastasia"]
[Result "1/2-1/2"]
[Board "7"]
[TimeControl "5400+30"]
[WhiteFideId "12811700"]
[BlackFideId "34101737"]
[WhiteElo "2150"]
[BlackElo "2259"]
[BlackTitle "WIM"]
[WhiteClock "0:19:17"]
[BlackClock "0:05:18"]
[Variant "Standard"]
[EndDate "2026.07.31"]
[EndTime "10:41:45"]

1. e4 {[%clk 1:30:59]}  e5 {[%clk 1:29:28]} 2. Nf3 {[%clk 1:31:22]}  Nc6 {[%clk 1:29:40]} 3. d4 {[%clk 1:31:45]}  exd4 {[%clk 1:29:29]}
4. Nxd4 {[%clk 1:32:08]}  Nf6 {[%clk 1:29:50]} 5. Nxc6 {[%clk 1:32:31]}  bxc6 {[%clk 1:30:14]} 6. e5 {[%clk 1:32:54]}  Qe7 {[%clk 1:30:36]}
7. Qe2 {[%clk 1:33:18]}  Nd5 {[%clk 1:31:00]} 8. h4 {[%clk 1:33:43]}  Qe6 {[%clk 1:29:11]} 9. Nd2 {[%clk 1:34:05]}  a5 {[%clk 1:29:02]}
10. g3 {[%clk 1:34:18]}  Ba6 {[%clk 1:25:04]} 11. c4 {[%clk 1:34:25]}  Nb6 {[%clk 1:21:25]} 12. Bh3 {[%clk 1:29:38]}  Bxc4 {[%clk 1:12:59]}
13. Bxe6 {[%clk 1:23:22]}  Bxe2 {[%clk 1:13:17]} 14. Bxf7+ {[%clk 1:23:45]}  Kxf7 {[%clk 1:13:41]} 15. Kxe2 {[%clk 1:24:10]}  d6 {[%clk 0:58:04]}
16. f4 {[%clk 1:24:27]}  dxe5 {[%clk 0:57:55]} 17. fxe5 {[%clk 1:24:49]}  Re8 {[%clk 0:58:20]} 18. Rf1+ {[%clk 1:25:08]}  Kg6 {[%clk 0:57:19]}
19. Nf3 {[%clk 1:12:13]}  Bd6 {[%clk 0:43:29]} 20. Bf4 {[%clk 1:11:43]}  Nd7 {[%clk 0:34:13]} 21. Rac1 {[%clk 1:10:33]}  Nxe5 {[%clk 0:28:41]}
22. Nxe5+ {[%clk 1:09:59]}  Bxe5 {[%clk 0:28:06]} 23. Rxc6+ {[%clk 1:10:15]}  Bd6+ {[%clk 0:22:07]} 24. Kf3 {[%clk 1:07:54]}  Rhf8 {[%clk 0:21:25]}
25. Rd1 {[%clk 1:00:12]}  Rf6 {[%clk 0:20:13]} 26. Rd5 {[%clk 0:33:29]}  Bxf4 {[%clk 0:10:09]} 27. Rxf6+ {[%clk 0:33:53]}  Kxf6 {[%clk 0:10:37]}
28. Kxf4 {[%clk 0:28:10]}  Re2 {[%clk 0:09:03]} 29. Rb5 {[%clk 0:28:27]}  a4 {[%clk 0:08:19]} 30. a3 {[%clk 0:28:22]}  Rf2+ {[%clk 0:07:40]}
31. Kg4 {[%clk 0:27:35]}  g6 {[%clk 0:07:16]} 32. Rb7 {[%clk 0:21:41]}  h5+ {[%clk 0:07:38]} 33. Kh3 {[%clk 0:22:07]}  Rc2 {[%clk 0:07:50]}
34. g4 {[%clk 0:22:28]}  hxg4+ {[%clk 0:08:01]} 35. Kxg4 {[%clk 0:22:54]}  Rc4+ {[%clk 0:08:01]} 36. Kg3 {[%clk 0:23:16]}  Kf5 {[%clk 0:04:17]}
37. Rb8 {[%clk 0:20:45]}  Rg4+ {[%clk 0:04:25]} 38. Kh3 {[%clk 0:20:47]}  Rc4 {[%clk 0:04:28]} 39. Kg3 {[%clk 0:18:51]}  Rg4+ {[%clk 0:04:53]}
40. Kh3 {[%clk 0:19:17]}  Rc4 {[%clk 0:05:18]} 1/2-1/2

[Event "7th Paul Keres Memorial Festival 2026 Classic A"]
[Site "ESTONIA Resort Hotel & Spa conference center, EE"]
[Date "2026.07.31"]
[Round "7"]
[White "Kubicka, Anna"]
[Black "Ter-Avetisjana, Agnesa Stepania"]
[Result "0-1"]
[Board "8"]
[TimeControl "5400+30"]
[WhiteFideId "1152254"]
[BlackFideId "11614900"]
[WhiteElo "2236"]
[BlackElo "2141"]
[WhiteTitle "WIM"]
[BlackTitle "WIM"]
[WhiteClock "0:01:21"]
[BlackClock "0:18:42"]
[Variant "Standard"]
[EndDate "2026.07.31"]
[EndTime "10:54:13"]

1. e4 {[%clk 1:30:56]}  c6 {[%clk 1:27:28]} 2. d4 {[%clk 1:31:19]}  d5 {[%clk 1:27:56]} 3. e5 {[%clk 1:31:40]}  Bf5 {[%clk 1:28:24]}
4. Nf3 {[%clk 1:32:00]}  e6 {[%clk 1:28:52]} 5. Be2 {[%clk 1:32:22]}  a6 {[%clk 1:27:22]} 6. O-O {[%clk 1:30:31]}  h6 {[%clk 1:24:12]}
7. Nbd2 {[%clk 1:26:08]}  Nd7 {[%clk 1:22:41]} 8. c3 {[%clk 1:22:06]}  c5 {[%clk 1:22:39]} 9. Re1 {[%clk 1:18:52]}  Rc8 {[%clk 1:22:29]}
10. Nf1 {[%clk 1:17:48]}  Bg4 {[%clk 1:20:06]} 11. Ne3 {[%clk 1:12:18]}  Bxf3 {[%clk 1:19:27]} 12. Bxf3 {[%clk 1:12:43]}  cxd4 {[%clk 1:18:46]}
13. Qxd4 {[%clk 1:01:47]}  Bc5 {[%clk 1:18:11]} 14. Qf4 {[%clk 0:56:54]}  Ne7 {[%clk 1:17:56]} 15. Qg3 {[%clk 0:41:48]}  Bxe3 {[%clk 1:16:16]}
16. Bxe3 {[%clk 0:42:11]}  Nf5 {[%clk 1:16:42]} 17. Qh3 {[%clk 0:39:37]}  Nxe5 {[%clk 1:14:17]} 18. Bh5 {[%clk 0:36:57]}  Qf6 {[%clk 1:07:28]}
19. Bd4 {[%clk 0:28:09]}  Nxd4 {[%clk 1:07:48]} 20. cxd4 {[%clk 0:28:34]}  Ng6 {[%clk 1:08:11]} 21. Bxg6 {[%clk 0:28:02]}  Qxg6 {[%clk 1:08:28]}
22. Qa3 {[%clk 0:28:07]}  Qc2 {[%clk 1:04:15]} 23. h4 {[%clk 0:21:28]}  Kd7 {[%clk 1:01:55]} 24. Qg3 {[%clk 0:15:12]}  g6 {[%clk 0:58:48]}
25. Rac1 {[%clk 0:10:09]}  Qd2 {[%clk 0:56:26]} 26. Rcd1 {[%clk 0:10:14]}  Qb4 {[%clk 0:55:50]} 27. Qf3 {[%clk 0:07:15]}  Rhf8 {[%clk 0:52:21]}
28. h5 {[%clk 0:07:24]}  g5 {[%clk 0:46:40]} 29. Re3 {[%clk 0:06:23]}  Qe7 {[%clk 0:46:02]} 30. Rde1 {[%clk 0:06:08]}  Rfe8 {[%clk 0:46:23]}
31. Re5 {[%clk 0:04:59]}  Qf8 {[%clk 0:43:52]} 32. b4 {[%clk 0:03:53]}  Kc7 {[%clk 0:34:50]} 33. b5 {[%clk 0:04:14]}  a5 {[%clk 0:29:07]}
34. R5e3 {[%clk 0:02:17]}  Kb6 {[%clk 0:28:23]} 35. a4 {[%clk 0:02:34]}  Rc4 {[%clk 0:27:50]} 36. Qf6 {[%clk 0:02:47]}  Ka7 {[%clk 0:27:20]}
37. b6+ {[%clk 0:02:54]}  Kxb6 {[%clk 0:25:50]} 38. Rb1+ {[%clk 0:02:51]}  Ka7 {[%clk 0:26:13]} 39. Reb3 {[%clk 0:02:30]}  Rb4 {[%clk 0:26:34]}
40. Rxb4 {[%clk 0:00:48]}  axb4 {[%clk 0:27:03]} 41. g3 {[%clk 0:00:38]}  Rc8 {[%clk 0:27:21]} 42. Kg2 {[%clk 0:00:48]}  Rc3 {[%clk 0:26:14]}
43. Qe5 {[%clk 0:01:06]}  b3 {[%clk 0:25:50]} 44. a5 {[%clk 0:00:54]}  Qb4 {[%clk 0:25:56]} 45. a6 {[%clk 0:01:08]}  Kxa6 {[%clk 0:19:30]}
46. Ra1+ {[%clk 0:01:23]}  Kb6 {[%clk 0:20:16]} 47. Qb8 {[%clk 0:01:27]}  b2 {[%clk 0:20:28]} 48. Qd8+ {[%clk 0:00:50]}  Rc7 {[%clk 0:20:33]}
49. Rb1 {[%clk 0:00:52]}  Qxd4 {[%clk 0:20:02]} 50. Kh3 {[%clk 0:01:01]}  g4+ {[%clk 0:17:44]} 51. Kh4 {[%clk 0:01:22]}  Qb4 {[%clk 0:18:00]}
52. Qf6 {[%clk 0:01:02]}  Rc1 {[%clk 0:18:11]} 53. Qf4 {[%clk 0:00:35]}  Qe7+ {[%clk 0:18:05]} 54. Kxg4 {[%clk 0:00:46]}  Rc4 {[%clk 0:18:10]}
55. Rxb2+ {[%clk 0:01:10]}  Kc5 {[%clk 0:18:17]} 56. Rc2 {[%clk 0:01:21]}  Qg5+ {[%clk 0:18:42]} 0-1

[Event "7th Paul Keres Memorial Festival 2026 Classic A"]
[Site "ESTONIA Resort Hotel & Spa conference center, EE"]
[Date "2026.07.31"]
[Round "7"]
[White "Juknis, Paulius"]
[Black "Lagarde, Maxime"]
[Result "0-1"]
[Board "9"]
[TimeControl "5400+30"]
[WhiteFideId "12802247"]
[BlackFideId "662399"]
[WhiteElo "2157"]
[BlackElo "2622"]
[WhiteTitle "CM"]
[BlackTitle "GM"]
[WhiteClock "0:05:41"]
[BlackClock "0:32:36"]
[Variant "Standard"]
[EndDate "2026.07.31"]
[EndTime "10:41:35"]

1. d4 {[%clk 1:30:50]}  e6 {[%clk 1:30:36]} 2. Bf4 {[%clk 1:30:50]}  b6 {[%clk 1:30:36]} 3. e3 {[%clk 1:30:50]}  Bb7 {[%clk 1:30:36]}
4. Nf3 {[%clk 1:30:09]}  d6 {[%clk 1:22:10]} 5. h3 {[%clk 1:27:39]}  Nd7 {[%clk 1:22:35]} 6. a4 {[%clk 1:27:11]}  a5 {[%clk 1:21:17]}
7. Bb5 {[%clk 1:24:27]}  Be7 {[%clk 1:21:08]} 8. Nbd2 {[%clk 1:22:22]}  Ngf6 {[%clk 1:21:16]} 9. Bh2 {[%clk 1:20:39]}  O-O {[%clk 1:17:55]}
10. O-O {[%clk 1:20:33]}  Ne4 {[%clk 1:17:50]} 11. Nxe4 {[%clk 1:19:04]}  Bxe4 {[%clk 1:18:14]} 12. Bd3 {[%clk 1:16:20]}  Bb7 {[%clk 1:18:26]}
13. e4 {[%clk 1:11:47]}  Bf6 {[%clk 1:18:27]} 14. c3 {[%clk 1:11:32]}  g6 {[%clk 1:17:26]} 15. Re1 {[%clk 1:09:34]}  Bg7 {[%clk 1:15:02]}
16. Bc2 {[%clk 1:07:08]}  e5 {[%clk 1:13:45]} 17. Qd2 {[%clk 1:01:02]}  Qe7 {[%clk 1:14:37]} 18. Rad1 {[%clk 0:59:53]}  Rad8 {[%clk 1:14:50]}
19. Bg3 {[%clk 0:57:20]}  Kh8 {[%clk 1:13:49]} 20. Qe2 {[%clk 0:55:27]}  f6 {[%clk 1:11:04]} 21. h4 {[%clk 0:51:23]}  h5 {[%clk 1:10:24]}
22. Nd2 {[%clk 0:48:48]}  Bh6 {[%clk 1:10:13]} 23. Nf1 {[%clk 0:46:47]}  Qg7 {[%clk 1:09:03]} 24. Qc4 {[%clk 0:44:06]}  Nb8 {[%clk 1:08:33]}
25. Qe2 {[%clk 0:35:42]}  Rde8 {[%clk 1:08:08]} 26. dxe5 {[%clk 0:35:25]}  fxe5 {[%clk 1:08:14]} 27. f3 {[%clk 0:35:07]}  Nc6 {[%clk 1:07:26]}
28. Bb3 {[%clk 0:34:51]}  Nd8 {[%clk 1:07:48]} 29. Bc4 {[%clk 0:34:34]}  Ne6 {[%clk 1:06:57]} 30. Bxe6 {[%clk 0:34:26]}  Rxe6 {[%clk 1:06:51]}
31. Ne3 {[%clk 0:33:53]}  Ref6 {[%clk 1:05:13]} 32. b4 {[%clk 0:26:21]}  Bc8 {[%clk 0:59:24]} 33. Nd5 {[%clk 0:26:21]}  R6f7 {[%clk 0:59:10]}
34. bxa5 {[%clk 0:26:21]}  bxa5 {[%clk 0:59:50]} 35. Rb1 {[%clk 0:25:11]}  g5 {[%clk 0:58:53]} 36. hxg5 {[%clk 0:23:35]}  Bxg5 {[%clk 0:58:51]}
37. Kf2 {[%clk 0:20:22]}  h4 {[%clk 0:57:54]} 38. Rh1 {[%clk 0:20:47]}  Qh6 {[%clk 0:57:01]} 39. Kg1 {[%clk 0:20:29]}  Rh7 {[%clk 0:52:20]}
40. Rb8 {[%clk 0:18:25]}  Rg8 {[%clk 0:45:51]} 41. Bf2 {[%clk 0:18:08]}  h3 {[%clk 0:45:52]} 42. Rh2 {[%clk 0:17:20]}  c6 {[%clk 0:42:52]}
43. Rxc8 {[%clk 0:17:15]}  Rxc8 {[%clk 0:42:58]} 44. Rxh3 {[%clk 0:17:40]}  Qe6 {[%clk 0:42:34]} 45. Rxh7+ {[%clk 0:18:04]}  Kxh7 {[%clk 0:43:01]}
46. Nb6 {[%clk 0:18:02]}  Rg8 {[%clk 0:42:55]} 47. Qc4 {[%clk 0:15:08]}  Qe8 {[%clk 0:43:08]} 48. Qa6 {[%clk 0:14:54]}  Bf4 {[%clk 0:34:52]}
49. Kf1 {[%clk 0:08:10]}  Qg6 {[%clk 0:33:24]} 50. g4 {[%clk 0:08:23]}  Rf8 {[%clk 0:32:25]} 51. Qb7+ {[%clk 0:08:02]}  Rf7 {[%clk 0:32:50]}
52. Qxc6 {[%clk 0:08:09]}  Bh6 {[%clk 0:32:57]} 53. Qe8 {[%clk 0:05:41]}  Qf6 {[%clk 0:32:36]} 0-1

[Event "7th Paul Keres Memorial Festival 2026 Classic A"]
[Site "ESTONIA Resort Hotel & Spa conference center, EE"]
[Date "2026.07.31"]
[Round "7"]
[White "Berzina, Ilze"]
[Black "Jakubowski, Krzysztof"]
[Result "0-1"]
[Board "10"]
[TimeControl "5400+30"]
[WhiteFideId "11601345"]
[BlackFideId "1112848"]
[WhiteElo "2154"]
[BlackElo "2424"]
[WhiteTitle "WGM"]
[BlackTitle "GM"]
[WhiteClock "0:01:12"]
[BlackClock "0:43:06"]
[Variant "Standard"]
[EndDate "2026.07.31"]
[EndTime "10:13:21"]

1. e4 {[%clk 1:30:57]}  c5 {[%clk 1:30:39]} 2. Nf3 {[%clk 1:31:20]}  Nc6 {[%clk 1:31:02]} 3. Bb5 {[%clk 1:31:13]}  e6 {[%clk 1:31:24]}
4. O-O {[%clk 1:28:01]}  Nge7 {[%clk 1:31:47]} 5. Re1 {[%clk 1:27:59]}  a6 {[%clk 1:32:10]} 6. Bf1 {[%clk 1:28:09]}  b6 {[%clk 1:32:32]}
7. c3 {[%clk 1:26:13]}  d5 {[%clk 1:29:05]} 8. exd5 {[%clk 1:18:58]}  Nxd5 {[%clk 1:29:21]} 9. d4 {[%clk 1:19:08]}  cxd4 {[%clk 1:29:44]}
10. Nxd4 {[%clk 1:19:20]}  Bb7 {[%clk 1:30:02]} 11. Nf3 {[%clk 1:17:34]}  Be7 {[%clk 1:28:49]} 12. Nbd2 {[%clk 1:16:49]}  O-O {[%clk 1:28:53]}
13. Ne4 {[%clk 1:11:46]}  Qc7 {[%clk 1:25:30]} 14. Bd2 {[%clk 1:01:13]}  Rfd8 {[%clk 1:24:30]} 15. Qc1 {[%clk 0:58:05]}  b5 {[%clk 1:18:54]}
16. Bg5 {[%clk 0:47:01]}  f6 {[%clk 1:18:10]} 17. Bd2 {[%clk 0:43:13]}  e5 {[%clk 1:10:11]} 18. c4 {[%clk 0:36:09]}  bxc4 {[%clk 1:08:59]}
19. Qxc4 {[%clk 0:35:21]}  Kh8 {[%clk 1:07:47]} 20. Rac1 {[%clk 0:34:15]}  Qb6 {[%clk 0:55:05]} 21. Nc5 {[%clk 0:26:11]}  Bxc5 {[%clk 0:55:12]}
22. Qxc5 {[%clk 0:26:36]}  Qxc5 {[%clk 0:55:39]} 23. Rxc5 {[%clk 0:27:00]}  Ndb4 {[%clk 0:56:05]} 24. Re3 {[%clk 0:21:31]}  Nxa2 {[%clk 0:51:58]}
25. Rb3 {[%clk 0:20:34]}  Rd7 {[%clk 0:52:21]} 26. Rxb7 {[%clk 0:15:57]}  Rxb7 {[%clk 0:51:24]} 27. Rxc6 {[%clk 0:16:23]}  Rxb2 {[%clk 0:51:30]}
28. Ba5 {[%clk 0:12:22]}  e4 {[%clk 0:47:13]} 29. Nd4 {[%clk 0:11:50]}  Nb4 {[%clk 0:46:38]} 30. Re6 {[%clk 0:09:08]}  Nd3 {[%clk 0:46:08]}
31. Rxe4 {[%clk 0:09:18]}  Nxf2 {[%clk 0:46:32]} 32. Re7 {[%clk 0:08:52]}  Ra2 {[%clk 0:45:08]} 33. Be1 {[%clk 0:08:30]}  Ng4 {[%clk 0:45:07]}
34. Nf5 {[%clk 0:07:29]}  a5 {[%clk 0:44:40]} 35. Rxg7 {[%clk 0:06:19]}  Ne3 {[%clk 0:44:31]} 36. Rf7 {[%clk 0:02:52]}  Nxf5 {[%clk 0:43:45]}
37. Rxf6 {[%clk 0:03:10]}  Ne3 {[%clk 0:43:39]} 38. Bc3 {[%clk 0:01:52]}  Kg8 {[%clk 0:44:02]} 39. Ba6 {[%clk 0:00:48]}  Rxg2+ {[%clk 0:42:41]}
40. Kh1 {[%clk 0:01:12]}  Rc2 {[%clk 0:43:06]} 0-1

[Event "7th Paul Keres Memorial Festival 2026 Classic A"]
[Site "ESTONIA Resort Hotel & Spa conference center, EE"]
[Date "2026.07.31"]
[Round "8"]
[White "Zeng, Chongsheng"]
[Black "Maltsevskaya, Aleksandra"]
[Result "1-0"]
[Board "1"]
[TimeControl "5400+30"]
[WhiteFideId "8603847"]
[BlackFideId "24174041"]
[WhiteElo "2565"]
[BlackElo "2360"]
[WhiteTitle "GM"]
[BlackTitle "IM"]
[WhiteClock "0:05:26"]
[BlackClock "0:00:57"]
[Variant "Standard"]
[EndDate "2026.07.31"]
[EndTime "16:48:04"]

1. c4 {[%clk 1:27:55]}  e6 {[%clk 1:30:52]} 2. Nf3 {[%clk 1:27:53]}  Nf6 {[%clk 1:31:12]} 3. g3 {[%clk 1:28:17]}  d5 {[%clk 1:31:36]}
4. Bg2 {[%clk 1:28:42]}  Be7 {[%clk 1:31:34]} 5. O-O {[%clk 1:29:04]}  dxc4 {[%clk 1:28:06]} 6. Qa4+ {[%clk 1:29:04]}  Nbd7 {[%clk 1:28:00]}
7. Qxc4 {[%clk 1:29:08]}  c5 {[%clk 1:28:03]} 8. Qc2 {[%clk 1:28:46]}  O-O {[%clk 1:28:04]} 9. Nc3 {[%clk 1:28:51]}  Rb8 {[%clk 1:19:23]}
10. d4 {[%clk 1:18:47]}  b5 {[%clk 1:19:40]} 11. Rd1 {[%clk 1:15:43]}  Bb7 {[%clk 1:06:33]} 12. Bf4 {[%clk 0:58:28]}  Rc8 {[%clk 1:06:51]}
13. Nxb5 {[%clk 0:55:32]}  Qb6 {[%clk 1:06:36]} 14. Nc3 {[%clk 0:53:41]}  cxd4 {[%clk 0:49:54]} 15. Nxd4 {[%clk 0:51:37]}  Bxg2 {[%clk 0:35:23]}
16. Kxg2 {[%clk 0:51:46]}  Bc5 {[%clk 0:35:46]} 17. Nb3 {[%clk 0:48:19]}  Bxf2 {[%clk 0:35:55]} 18. Rd6 {[%clk 0:47:26]}  Qb7+ {[%clk 0:22:57]}
19. Kxf2 {[%clk 0:45:49]}  e5 {[%clk 0:23:22]} 20. Rxd7 {[%clk 0:36:37]}  Qxd7 {[%clk 0:18:58]} 21. Bg5 {[%clk 0:35:36]}  Ng4+ {[%clk 0:15:44]}
22. Kg1 {[%clk 0:32:30]}  h6 {[%clk 0:12:08]} 23. Bd2 {[%clk 0:31:30]}  a5 {[%clk 0:11:05]} 24. Qe4 {[%clk 0:22:35]}  Rfd8 {[%clk 0:04:50]}
25. Rf1 {[%clk 0:17:33]}  Qa7+ {[%clk 0:05:14]} 26. e3 {[%clk 0:11:00]}  Nf6 {[%clk 0:05:37]} 27. Qxe5 {[%clk 0:10:32]}  Rd3 {[%clk 0:02:09]}
28. Qf5 {[%clk 0:06:38]}  Rcd8 {[%clk 0:01:29]} 29. Bc1 {[%clk 0:06:58]}  a4 {[%clk 0:00:34]} 30. Nd4 {[%clk 0:07:12]}  R8xd4 {[%clk 0:00:59]}
31. exd4 {[%clk 0:07:38]}  Qxd4+ {[%clk 0:01:24]} 32. Qf2 {[%clk 0:07:33]}  Qc4 {[%clk 0:01:49]} 33. a3 {[%clk 0:06:24]}  h5 {[%clk 0:00:59]}
34. Bg5 {[%clk 0:05:43]}  Ng4 {[%clk 0:01:14]} 35. Qa7 {[%clk 0:05:33]}  f6 {[%clk 0:01:02]} 36. Bf4 {[%clk 0:05:03]}  Rxc3 {[%clk 0:00:33]}
37. bxc3 {[%clk 0:05:13]}  Qe2 {[%clk 0:00:57]} 38. Qa8+ {[%clk 0:05:26]} 1-0

[Event "7th Paul Keres Memorial Festival 2026 Classic A"]
[Site "ESTONIA Resort Hotel & Spa conference center, EE"]
[Date "2026.07.31"]
[Round "8"]
[White "Ter-Avetisjana, Agnesa Stepania"]
[Black "Kazakouski, Valery"]
[Result "0-1"]
[Board "2"]
[TimeControl "5400+30"]
[WhiteFideId "11614900"]
[BlackFideId "13507443"]
[WhiteElo "2141"]
[BlackElo "2594"]
[WhiteTitle "WIM"]
[BlackTitle "GM"]
[WhiteClock "0:04:25"]
[BlackClock "0:51:34"]
[Variant "Standard"]
[EndDate "2026.07.31"]
[EndTime "15:55:09"]

1. e4 {[%clk 1:30:58]}  c5 {[%clk 1:28:42]} 2. Nf3 {[%clk 1:31:26]}  g6 {[%clk 1:29:04]} 3. c3 {[%clk 1:31:53]}  d5 {[%clk 1:29:27]}
4. exd5 {[%clk 1:32:20]}  Qxd5 {[%clk 1:29:49]} 5. d4 {[%clk 1:32:48]}  Bg7 {[%clk 1:30:09]} 6. Be3 {[%clk 1:28:58]}  cxd4 {[%clk 1:30:16]}
7. Bxd4 {[%clk 1:27:48]}  Nf6 {[%clk 1:30:30]} 8. Na3 {[%clk 1:26:08]}  Nc6 {[%clk 1:28:11]} 9. Bc4 {[%clk 1:18:47]}  Qh5 {[%clk 1:26:22]}
10. Be3 {[%clk 1:15:23]}  O-O {[%clk 1:25:10]} 11. Nd4 {[%clk 1:13:30]}  Ng4 {[%clk 1:15:24]} 12. Nxc6 {[%clk 1:11:34]}  bxc6 {[%clk 1:15:47]}
13. Bf4 {[%clk 1:08:13]}  Qf5 {[%clk 1:12:43]} 14. Bg3 {[%clk 1:05:52]}  Qe4+ {[%clk 1:09:51]} 15. Kf1 {[%clk 0:52:56]}  Ne5 {[%clk 1:05:56]}
16. Bxe5 {[%clk 0:46:30]}  Qxe5 {[%clk 1:05:49]} 17. Qe2 {[%clk 0:45:45]}  Qc5 {[%clk 1:04:12]} 18. h4 {[%clk 0:39:37]}  h5 {[%clk 1:02:14]}
19. g3 {[%clk 0:36:25]}  Bg4 {[%clk 0:59:23]} 20. f3 {[%clk 0:36:24]}  Bf5 {[%clk 0:59:45]} 21. Kg2 {[%clk 0:30:43]}  Rab8 {[%clk 0:59:58]}
22. Rac1 {[%clk 0:27:16]}  a5 {[%clk 0:58:37]} 23. Bb3 {[%clk 0:18:01]}  e5 {[%clk 0:58:05]} 24. Qc4 {[%clk 0:15:09]}  Qa7 {[%clk 0:57:40]}
25. Qe2 {[%clk 0:09:17]}  a4 {[%clk 0:56:31]} 26. Bc4 {[%clk 0:09:37]}  e4 {[%clk 0:55:16]} 27. f4 {[%clk 0:09:18]}  Rfd8 {[%clk 0:54:44]}
28. Rhe1 {[%clk 0:07:39]}  Qc5 {[%clk 0:52:13]} 29. Kh1 {[%clk 0:05:33]}  Bg4 {[%clk 0:51:29]} 30. Qxe4 {[%clk 0:05:52]}  Rxb2 {[%clk 0:51:30]}
31. Nc2 {[%clk 0:05:17]}  Bf5 {[%clk 0:51:23]} 32. Qe7 {[%clk 0:04:50]}  Qxe7 {[%clk 0:51:33]} 33. Rxe7 {[%clk 0:05:15]}  Rxc2 {[%clk 0:51:52]}
34. Rce1 {[%clk 0:04:25]}  Rf8 {[%clk 0:51:34]} 0-1

[Event "7th Paul Keres Memorial Festival 2026 Classic A"]
[Site "ESTONIA Resort Hotel & Spa conference center, EE"]
[Date "2026.07.31"]
[Round "8"]
[White "Keinanen, Toivo"]
[Black "Kirk, Ezra"]
[Result "1-0"]
[Board "3"]
[TimeControl "5400+30"]
[WhiteFideId "509825"]
[BlackFideId "600067"]
[WhiteElo "2495"]
[BlackElo "2378"]
[WhiteTitle "IM"]
[BlackTitle "IM"]
[WhiteClock "0:20:10"]
[BlackClock "0:28:03"]
[Variant "Standard"]
[EndDate "2026.07.31"]
[EndTime "15:53:21"]

1. Nf3 {[%clk 1:27:48]}  Nf6 {[%clk 1:30:47]} 2. d4 {[%clk 1:28:13]}  g6 {[%clk 1:31:06]} 3. Nbd2 {[%clk 1:28:18]}  d5 {[%clk 1:31:08]}
4. b3 {[%clk 1:28:43]}  Bg7 {[%clk 1:29:02]} 5. Bb2 {[%clk 1:28:30]}  O-O {[%clk 1:29:00]} 6. e3 {[%clk 1:28:58]}  c5 {[%clk 1:26:05]}
7. dxc5 {[%clk 1:28:20]}  Nc6 {[%clk 1:22:55]} 8. a3 {[%clk 1:25:44]}  Qc7 {[%clk 1:12:58]} 9. c4 {[%clk 1:15:13]}  Rd8 {[%clk 1:05:06]}
10. cxd5 {[%clk 1:13:01]}  Rxd5 {[%clk 1:05:30]} 11. b4 {[%clk 1:11:34]}  Bg4 {[%clk 1:03:30]} 12. Qb3 {[%clk 1:08:18]}  e5 {[%clk 0:57:08]}
13. Bc4 {[%clk 1:05:02]}  Rd7 {[%clk 0:57:32]} 14. h3 {[%clk 1:02:10]}  e4 {[%clk 0:50:16]} 15. Ng5 {[%clk 0:52:42]}  Bf5 {[%clk 0:40:23]}
16. g4 {[%clk 0:50:32]}  Ne5 {[%clk 0:40:41]} 17. gxf5 {[%clk 0:43:49]}  Nd3+ {[%clk 0:38:53]} 18. Bxd3 {[%clk 0:42:48]}  Rxd3 {[%clk 0:39:18]}
19. Qc4 {[%clk 0:39:40]}  Rad8 {[%clk 0:38:08]} 20. O-O-O {[%clk 0:34:56]}  Qd7 {[%clk 0:35:25]} 21. fxg6 {[%clk 0:33:24]}  hxg6 {[%clk 0:34:38]}
22. Qc2 {[%clk 0:26:43]}  Qf5 {[%clk 0:31:04]} 23. h4 {[%clk 0:22:17]}  Qxf2 {[%clk 0:29:52]} 24. Nc4 {[%clk 0:21:34]}  Qg3 {[%clk 0:28:03]}
25. Bxf6 {[%clk 0:20:10]} 1-0

[Event "7th Paul Keres Memorial Festival 2026 Classic A"]
[Site "ESTONIA Resort Hotel & Spa conference center, EE"]
[Date "2026.07.31"]
[Round "8"]
[White "Kreken, Eivind Grunt"]
[Black "Ostensen, Nicolai Maxime"]
[Result "1-0"]
[Board "4"]
[TimeControl "5400+30"]
[WhiteFideId "1532359"]
[BlackFideId "1546970"]
[WhiteElo "2335"]
[BlackElo "2407"]
[WhiteTitle "FM"]
[BlackTitle "FM"]
[WhiteClock "0:03:10"]
[BlackClock "0:01:04"]
[Variant "Standard"]
[EndDate "2026.07.31"]
[EndTime "17:05:17"]

1. e4 {[%clk 1:30:38]}  c5 {[%clk 1:30:35]} 2. Nf3 {[%clk 1:30:55]}  Nc6 {[%clk 1:30:48]} 3. Bb5 {[%clk 1:30:19]}  g6 {[%clk 1:31:11]}
4. Bxc6 {[%clk 1:29:50]}  dxc6 {[%clk 1:31:29]} 5. d3 {[%clk 1:30:13]}  Bg7 {[%clk 1:31:38]} 6. h3 {[%clk 1:29:38]}  e5 {[%clk 1:31:53]}
7. a4 {[%clk 1:26:39]}  a5 {[%clk 1:31:40]} 8. Na3 {[%clk 1:25:23]}  Qc7 {[%clk 1:30:24]} 9. Nc4 {[%clk 1:18:07]}  b6 {[%clk 1:27:50]}
10. Be3 {[%clk 1:16:54]}  Be6 {[%clk 1:27:50]} 11. O-O {[%clk 1:12:37]}  f6 {[%clk 1:26:28]} 12. Nfd2 {[%clk 1:06:48]}  g5 {[%clk 1:19:12]}
13. b4 {[%clk 1:03:59]}  axb4 {[%clk 1:14:59]} 14. a5 {[%clk 1:04:09]}  b5 {[%clk 1:14:29]} 15. Nb6 {[%clk 1:03:41]}  Ra6 {[%clk 1:14:35]}
16. Bxc5 {[%clk 0:59:02]}  Bf8 {[%clk 1:15:00]} 17. Nb3 {[%clk 0:45:43]}  Bxb3 {[%clk 1:14:47]} 18. Bxf8 {[%clk 0:46:05]}  Kxf8 {[%clk 1:14:53]}
19. cxb3 {[%clk 0:46:28]}  Qd6 {[%clk 1:11:23]} 20. Qg4 {[%clk 0:42:52]}  Ne7 {[%clk 1:08:48]} 21. Nc8 {[%clk 0:35:58]}  Qc7 {[%clk 1:04:46]}
22. Nxe7 {[%clk 0:34:00]}  Kxe7 {[%clk 1:04:44]} 23. d4 {[%clk 0:32:11]}  Qd7 {[%clk 0:58:35]} 24. dxe5 {[%clk 0:28:07]}  Qxg4 {[%clk 0:58:56]}
25. exf6+ {[%clk 0:28:36]}  Kxf6 {[%clk 0:59:17]} 26. hxg4 {[%clk 0:29:02]}  Rd8 {[%clk 0:50:31]} 27. f4 {[%clk 0:28:10]}  gxf4 {[%clk 0:50:16]}
28. Rxf4+ {[%clk 0:27:46]}  Ke6 {[%clk 0:43:55]} 29. Re1 {[%clk 0:23:24]}  Rg8 {[%clk 0:33:30]} 30. e5 {[%clk 0:22:22]}  Rg6 {[%clk 0:33:25]}
31. g5 {[%clk 0:15:20]}  Rxa5 {[%clk 0:27:42]} 32. Rf6+ {[%clk 0:14:50]}  Ke7 {[%clk 0:26:07]} 33. e6 {[%clk 0:14:39]}  Rg7 {[%clk 0:25:38]}
34. Rf2 {[%clk 0:11:50]}  Ra7 {[%clk 0:24:33]} 35. Rc2 {[%clk 0:10:44]}  Rc7 {[%clk 0:24:00]} 36. Rf2 {[%clk 0:07:50]}  Rc8 {[%clk 0:22:49]}
37. Ra2 {[%clk 0:07:28]}  Rc7 {[%clk 0:20:55]} 38. Rf2 {[%clk 0:07:40]}  Kd6 {[%clk 0:18:28]} 39. Rd2+ {[%clk 0:08:00]}  Kc5 {[%clk 0:18:05]}
40. Re5+ {[%clk 0:06:40]}  Kb6 {[%clk 0:18:32]} 41. Kf2 {[%clk 0:06:03]}  Rce7 {[%clk 0:13:12]} 42. Kf3 {[%clk 0:06:09]}  Rg6 {[%clk 0:11:31]}
43. Rde2 {[%clk 0:05:10]}  Rg8 {[%clk 0:08:57]} 44. Kf4 {[%clk 0:05:09]}  Rge8 {[%clk 0:09:13]} 45. R5e4 {[%clk 0:04:51]}  Rf8+ {[%clk 0:08:03]}
46. Ke5 {[%clk 0:05:11]}  Kc7 {[%clk 0:06:27]} 47. Ra2 {[%clk 0:05:00]}  Kb6 {[%clk 0:01:35]} 48. Kd6 {[%clk 0:05:21]}  Rfe8 {[%clk 0:01:23]}
49. Rf2 {[%clk 0:04:42]}  Rc7 {[%clk 0:00:57]} 50. e7 {[%clk 0:03:55]}  Rcc8 {[%clk 0:00:59]} 51. Kd7 {[%clk 0:03:43]}  c5 {[%clk 0:01:21]}
52. Rf6+ {[%clk 0:03:18]}  Ka5 {[%clk 0:01:04]} 53. Ree6 {[%clk 0:03:10]} 1-0